fUSD/lending_fUSD_20260626
["ID","MTS","AMOUNT","RATE_DAILY","PERIOD"]
[426463496,1782419443000,-188.08,0.00026272,7]
[426463494,1782419443000,-10282.41222084,0.00026222,2]
[426463483,1782419443000,-204.00418421,0.0002575,2]
[426463492,1782419443000,-10282.41222084,0.00026,2]
[426463487,1782419443000,-151.06939217,0.00025752,2]
[426463491,1782419443000,-7751.14535067,0.00025996,2]
[426463490,1782419443000,-350.0,0.00025976,3]
[426463486,1782419443000,-349.92261057,0.00025752,2]
[426463485,1782419443000,-295.96704938,0.00025752,2]
[426463497,1782419443000,-200.13721741,0.00026291,2]
[426463488,1782419443000,-228.88841419,0.00025886,2]
[426463499,1782419443000,-654.13913178,0.00026291,2]
[426463505,1782419443000,-868.48770041,0.00026291,2]
[426463498,1782419443000,-350.18248441,0.00026291,2]
[426463503,1782419443000,-688.09447909,0.00026291,2]
[426463501,1782419443000,-408.05532179,0.00026291,2]
[426463502,1782419443000,-157.31506445,0.00026291,2]
[426463504,1782419443000,-791.65259178,0.00026291,2]
[426463508,1782419443000,-600.01382872,0.00026291,2]
[426463506,1782419443000,-689.06426274,0.00026291,2]
[426463511,1782419443000,-304.29606457,0.00026291,2]
[426463510,1782419443000,-160.30085569,0.00026291,2]
[426463507,1782419443000,-427.69505154,0.00026291,2]
[426463509,1782419443000,-325.62749479,0.00026291,2]
[426463513,1782419443000,-610.74659441,0.00026291,2]
[426463482,1782419443000,-182.36092906,0.0002575,2]
[426463500,1782419443000,-731.63974764,0.00026291,2]
[426463481,1782419443000,-587.9963449,0.0002575,2]
[426463451,1782419443000,-624.37491053,0.0002575,2]
[426463480,1782419443000,-228.92472085,0.0002575,2]
[426463517,1782419443000,-406.65205699,0.00026299,2]
[426463453,1782419443000,-247.39069773,0.0002575,2]
[426463452,1782419443000,-209.99992073,0.0002575,2]
[426463456,1782419443000,-155.76491572,0.0002575,2]
[426463454,1782419443000,-215.08436668,0.0002575,2]
[426463455,1782419443000,-480.96008505,0.0002575,2]
[426463459,1782419443000,-185.25841479,0.0002575,2]
[426463457,1782419443000,-203.2992283,0.0002575,2]
[426463458,1782419443000,-245.99710636,0.0002575,2]
[426463463,1782419443000,-239.39168449,0.0002575,2]
[426463460,1782419443000,-947.59650819,0.0002575,2]
[426463462,1782419443000,-473.57403572,0.0002575,2]
[426463461,1782419443000,-206.7260795,0.0002575,2]
[426463466,1782419443000,-197.26449725,0.0002575,2]
[426463464,1782419443000,-1036.36855017,0.0002575,2]
[426463465,1782419443000,-200.68787274,0.0002575,2]
[426463467,1782419443000,-834.43784571,0.0002575,2]
[426463472,1782419443000,-472.3811831,0.0002575,2]
[426463469,1782419443000,-546.82403169,0.0002575,2]
[426463471,1782419443000,-203.07370782,0.0002575,2]
[426463470,1782419443000,-219.42425046,0.0002575,2]
[426463468,1782419443000,-1161.75175985,0.0002575,2]
[426463473,1782419443000,-486.13823885,0.0002575,2]
[426463474,1782419443000,-245.45203645,0.0002575,2]
[426463477,1782419443000,-590.79291977,0.0002575,2]
[426463476,1782419443000,-471.04036245,0.0002575,2]
[426463475,1782419443000,-463.93186415,0.0002575,2]
[426463479,1782419443000,-506.57155484,0.0002575,2]
[426463478,1782419443000,-529.77334129,0.0002575,2]
[426463484,1782419443000,-556.63743198,0.0002575,2]
[426463516,1782419443000,-419.13387339,0.00026299,2]
[426463489,1782419443000,-350.0,0.00025927,2]
[426463514,1782419443000,-686.99936354,0.00026299,2]
[426463553,1782419443000,-491.99421271,0.00026309,2]
[426463555,1782419443000,-1263.46201092,0.00026309,2]
[426463556,1782419443000,-413.45215901,0.00026309,2]
[426463558,1782419443000,-631.43204763,0.00026309,2]
[426463557,1782419443000,-159.76145998,0.00026309,2]
[426463559,1782419443000,-165.78920298,0.00026309,2]
[426463560,1782419443000,-427.69382323,0.00026309,2]
[426463562,1782419443000,-1381.82473355,0.00026309,2]
[426463568,1782419443000,-352.23777355,0.00026309,2]
[426463567,1782419443000,-301.14518982,0.00026309,2]
[426463565,1782419443000,-401.37574548,0.00026309,2]
[426463563,1782419443000,-419.72336408,0.00026309,2]
[426463564,1782419443000,-312.02464361,0.00026309,2]
[426463566,1782419443000,-394.52899451,0.00026309,2]
[426463569,1782419443000,-395.9835908,0.00026309,2]
[426463571,1782419443000,-1112.58379428,0.00026309,2]
[426463570,1782419443000,-222.47990996,0.00026309,2]
[426463574,1782419443000,-1549.00234647,0.00026309,2]
[426463573,1782419443000,-184.1702866,0.00026309,2]
[426463572,1782419443000,-160.52614116,0.00026309,2]
[426463576,1782419443000,-729.09870892,0.00026309,2]
[426463575,1782419443000,-371.92863525,0.00026309,2]
[426463580,1782419443000,-648.18431847,0.00026309,2]
[426463579,1782419443000,-629.84157747,0.00026309,2]
[426463578,1782419443000,-406.14741563,0.00026309,2]
[426463577,1782419443000,-438.84850092,0.00026309,2]
[426463581,1782419443000,-429.90475419,0.00026309,2]
[426463583,1782419443000,-618.57581887,0.00026309,2]
[426463515,1782419443000,-691.48183492,0.00026299,2]
[426463554,1782419443000,-370.51682958,0.00026309,2]
[426463550,1782419443000,-185.5123728,0.00026309,2]
[426463561,1782419443000,-478.78336899,0.00026309,2]
[426463551,1782419443000,-386.57456617,0.00026309,2]
[426463518,1782419443000,-411.80000744,0.00026299,2]
[426463512,1782419443000,-695.75417887,0.00026291,2]
[426463519,1782419443000,-484.79595078,0.00026299,2]
[426463522,1782419443000,-449.84192485,0.00026299,2]
[426463520,1782419443000,-474.78799457,0.00026299,2]
[426463528,1782419443000,-487.95770393,0.00026299,2]
[426463552,1782419443000,-234.16705774,0.00026309,2]
[426463526,1782419443000,-193.54528885,0.00026299,2]
[426463529,1782419443000,-229.90086396,0.00026299,2]
[426463531,1782419443000,-212.33070292,0.00026299,2]
[426463530,1782419443000,-657.92252352,0.00026299,2]
[426463532,1782419443000,-713.05328097,0.00026299,2]
[426463533,1782419443000,-436.33831095,0.00026299,2]
[426463534,1782419443000,-688.21430025,0.00026299,2]
[426463535,1782419443000,-214.5,0.000263,2]
[426463524,1782419443000,-404.22666804,0.00026299,2]
[426463537,1782419443000,-728.47827786,0.00026309,2]
[426463536,1782419443000,-732.83949133,0.00026309,2]
[426463549,1782419443000,-311.52983143,0.00026309,2]
[426463548,1782419443000,-157.81993866,0.00026309,2]
[426463547,1782419443000,-721.44012758,0.00026309,2]
[426463545,1782419443000,-282.13967237,0.00026309,2]
[426463582,1782419443000,-490.90407291,0.00026309,2]
[426463543,1782419443000,-832.49988071,0.00026309,2]
[426463546,1782419443000,-430.16873336,0.00026309,2]
[426463539,1782419443000,-671.38096593,0.00026309,2]
[426463542,1782419443000,-753.75376492,0.00026309,2]
[426463538,1782419443000,-682.0383224,0.00026309,2]
[426463541,1782419443000,-382.84692595,0.00026309,2]
[426463540,1782419443000,-683.68509001,0.00026309,2]
[426463544,1782419443000,-494.78139545,0.00026309,2]
[426463607,1782419444000,-271.27331294,0.00026597,2]
[426463595,1782419444000,-742.18324264,0.00026309,2]
[426463599,1782419444000,-3019.33703451,0.00026399,2]
[426463598,1782419444000,-364.8674757,0.00026397,2]
[426463596,1782419444000,-419.99984147,0.00026309,2]
[426463600,1782419444000,-10282.41222084,0.00026444,2]
[426463597,1782419444000,-3962.34597599,0.00026387,2]
[426463593,1782419444000,-364.72185813,0.00026309,2]
[426463585,1782419444000,-787.72389302,0.00026309,2]
[426463590,1782419444000,-392.47097785,0.00026309,2]
[426463594,1782419444000,-429.76400259,0.00026309,2]
[426463591,1782419444000,-443.49372262,0.00026309,2]
[426463588,1782419444000,-675.42873979,0.00026309,2]
[426463589,1782419444000,-783.99512653,0.00026309,2]
[426463587,1782419444000,-457.8494417,0.00026309,2]
[426463586,1782419444000,-706.36445506,0.00026309,2]
[426463584,1782419444000,-628.0538166,0.00026309,2]
[426463605,1782419444000,-1000.0,0.0002655,2]
[426463592,1782419444000,-183.39144829,0.00026309,2]
[426463606,1782419444000,-350.0,0.00026587,3]
[426463602,1782419444000,-238.19819717,0.00026507,2]
[426463603,1782419444000,-151.0,0.00026531,2]
[426463601,1782419444000,-1257.32304766,0.00026507,2]
[426463628,1782419444000,-408.83046267,0.00026607,2]
[426463626,1782419444000,-20890.66672836,0.00026607,2]
[426463625,1782419444000,-685.20682658,0.00026507,2]
[426463624,1782419444000,-305.0,0.00023,2]
[426463623,1782419444000,-400.14220684,0.00026607,2]
[426463621,1782419444000,-828274.67702952,0.00026607,2]
[426463619,1782419444000,-9396.4016815,0.00026607,2]
[426463617,1782419444000,-1484.65,0.00026607,2]
[426463618,1782419444000,-183077.7804079,0.00026607,2]
[426463616,1782419444000,-500.0,0.00026606,2]
[426463613,1782419444000,-666.0,0.00026606,2]
[426463611,1782419444000,-1000.0,0.000266,2]
[426463614,1782419444000,-500.0,0.00026606,2]
[426463612,1782419444000,-300.0,0.00026606,10]
[426463608,1782419444000,-267.9254044,0.00026597,2]
[426463610,1782419444000,-311.45186718,0.00026597,2]
[426463609,1782419444000,-454.77887238,0.00026597,2]
[426463604,1782419444000,-151.0,0.00026531,2]
[426463615,1782419444000,-500.0,0.00026606,2]
[426463630,1782419445000,-317.0,0.00025,2]
[426463631,1782419445000,-7158.71041396,0.00026607,2]
[426463629,1782419445000,-305.0,0.00024,2]
[426463635,1782419446000,-1000.0,0.0002653,2]
[426463633,1782419446000,-1000.0,0.0002653,2]
[426463637,1782419446000,-1000.0,0.0002653,2]
[426463690,1782419446000,-2749.68703553,0.00026607,2]
[426463639,1782419446000,-1031.31661201,0.00026607,2]
[426463709,1782419447000,-277.411764,0.00026607,2]
[426463708,1782419447000,-277.411764,0.00026607,2]
[426463705,1782419447000,-151.0,0.00026607,2]
[426463707,1782419447000,-151.0,0.00026607,2]
[426463706,1782419447000,-123501.8575166,0.00026607,2]
[426463702,1782419447000,-151.0,0.00026607,2]
[426463704,1782419447000,-151.0,0.00026607,2]
[426463703,1782419447000,-151.0,0.00026607,2]
[426463700,1782419447000,-151.0,0.00026607,2]
[426463701,1782419447000,-151.0,0.00026607,2]
[426463698,1782419447000,-151.0,0.00026607,2]
[426463699,1782419447000,-151.0,0.00026607,2]
[426463696,1782419447000,-151.0,0.00026607,2]
[426463695,1782419447000,-151.0,0.00026607,2]
[426463694,1782419447000,-2785.9057236,0.00026607,2]
[426463693,1782419447000,-26170.84110815,0.00026607,2]
[426463691,1782419447000,-273.39362236,0.00026607,2]
[426463692,1782419447000,-15467.81,0.00026607,2]
[426463697,1782419447000,-151.0,0.00026607,2]
[426463710,1782419447000,-277.411764,0.00026607,2]
[426463714,1782419447000,-151.0,0.00026607,2]
[426463712,1782419447000,-151.0,0.00026607,2]
[426463732,1782419447000,-77781.00605727,0.000268,2]
[426463729,1782419447000,-300.0,0.00026799,10]
[426463730,1782419447000,-708.27367629,0.00026799,2]
[426463731,1782419447000,-1219.0,0.000268,5]
[426463728,1782419447000,-500.0,0.00026799,2]
[426463727,1782419447000,-500.0,0.00026799,2]
[426463726,1782419447000,-500.0,0.00026799,2]
[426463723,1782419447000,-177.05488996,0.00026727,2]
[426463724,1782419447000,-500.0,0.00026799,2]
[426463725,1782419447000,-500.0,0.00026799,2]
[426463722,1782419447000,-273.77645038,0.00026715,2]
[426463719,1782419447000,-151.0,0.00026607,2]
[426463721,1782419447000,-10282.41222084,0.00026667,2]
[426463720,1782419447000,-237.86023811,0.00026631,2]
[426463717,1782419447000,-155.266468,0.00026607,2]
[426463718,1782419447000,-151.0,0.00026607,2]
[426463716,1782419447000,-151.0,0.00026607,2]
[426463713,1782419447000,-151.0,0.00026607,2]
[426463715,1782419447000,-151.0,0.00026607,2]
[426463711,1782419447000,-277.411764,0.00026607,2]
[426463737,1782419550000,160.64,0.00025189,120]
[426463739,1782419550000,160.64,0.00030786,120]
[426463738,1782419550000,160.64,0.00027987,120]
[426463742,1782419588000,1390.695742,7.945e-05,2]
[426463754,1782419747000,402.0,0.00031118,120]
[426463753,1782419747000,402.0,0.00028525,120]
[426463756,1782419827000,3867.78639477,0.00037258,120]
[426463760,1782420390000,500.0,0.00037251,120]
[426463759,1782420390000,500.0,0.00037251,120]
[426463761,1782420391000,500.0,0.00037251,120]
[426463763,1782420391000,500.0,0.00037251,120]
[426463762,1782420391000,500.0,0.00037251,120]
[426463765,1782420392000,500.0,0.00037251,120]
[426463764,1782420392000,500.0,0.00037251,120]
[426463766,1782420392000,500.0,0.00037251,120]
[426463770,1782420393000,500.0,0.00037251,120]
[426463769,1782420393000,500.0,0.00037251,120]
[426463768,1782420393000,500.0,0.00037251,120]
[426463767,1782420393000,500.0,0.00037251,120]
[426463771,1782420394000,500.0,0.00037251,120]
[426463772,1782420394000,500.0,0.00037251,120]
[426463773,1782420395000,500.0,0.00037251,120]
[426463774,1782420395000,185.38013676,0.00037251,120]
[426463898,1782420631000,-500.0,0.0001461,2]
[426463824,1782420631000,-152.0,0.00013868,2]
[426463820,1782420631000,-151.0,0.00013868,2]
[426463821,1782420631000,-152.0,0.00013868,2]
[426463825,1782420631000,-151.0,0.00013868,2]
[426463823,1782420631000,-152.0,0.00013868,2]
[426463826,1782420631000,-151.0,0.00013868,2]
[426463829,1782420631000,-691.14458425,0.00013868,2]
[426463827,1782420631000,-151.0,0.00013868,2]
[426463828,1782420631000,-152.0,0.00013868,2]
[426463835,1782420631000,-6273.52,0.0001399,2]
[426463836,1782420631000,-158.01,0.0001399,2]
[426463837,1782420631000,-250.0,0.00014,2]
[426463832,1782420631000,-3112.06,0.00013868,2]
[426463822,1782420631000,-150.0,0.00013868,2]
[426463830,1782420631000,-299.99,0.00013868,2]
[426463819,1782420631000,-150.0,0.00013868,2]
[426463814,1782420631000,-151.0,0.00013768,2]
[426463799,1782420631000,-3873.0372302,0.00012927,2]
[426463801,1782420631000,-307.73545605,0.0001299,2]
[426463805,1782420631000,-1290.93476375,0.00013182,2]
[426463803,1782420631000,-500.0,0.00013054,2]
[426463808,1782420631000,-1100.61527437,0.00013282,2]
[426463807,1782420631000,-149.78495663,0.00013182,2]
[426463833,1782420631000,-3777.234,0.0001399,2]
[426463809,1782420631000,-216.45114417,0.00013288,2]
[426463815,1782420631000,-150.0,0.00013868,2]
[426463817,1782420631000,-151.0,0.00013868,2]
[426463813,1782420631000,-151.0,0.00013768,2]
[426463812,1782420631000,-152.0,0.00013768,2]
[426463810,1782420631000,-150.0,0.00013452,2]
[426463816,1782420631000,-152.0,0.00013868,2]
[426463811,1782420631000,-152.0,0.00013531,2]
[426463842,1782420631000,-152.0,0.00014,2]
[426463818,1782420631000,-151.0,0.00013868,2]
[426463838,1782420631000,-150.0,0.00014,2]
[426463874,1782420631000,-152.0,0.00014075,2]
[426463872,1782420631000,-217.14,0.00014024,2]
[426463880,1782420631000,-1226.09257158,0.00014168,2]
[426463878,1782420631000,-157.86015524,0.00014075,2]
[426463876,1782420631000,-152.0,0.00014075,2]
[426463882,1782420631000,-250.0,0.00014219,2]
[426463871,1782420631000,-500.0,0.00014,2]
[426463890,1782420631000,-4000.0,0.0001461,2]
[426463887,1782420631000,-500.0,0.00014274,2]
[426463889,1782420631000,-500.0,0.00014548,2]
[426463892,1782420631000,-300.0,0.0001461,2]
[426463894,1782420631000,-300.0,0.0001461,2]
[426463896,1782420631000,-808.4064485,0.0001461,2]
[426463840,1782420631000,-151.0,0.00014,2]
[426463883,1782420631000,-500.0,0.00014219,2]
[426463873,1782420631000,-1100.61527437,0.00014075,2]
[426463885,1782420631000,-250.0,0.00014219,2]
[426463865,1782420631000,-465.0,0.00014,2]
[426463841,1782420631000,-150.0,0.00014,2]
[426463869,1782420631000,-153.0,0.00014,2]
[426463834,1782420631000,-255.494,0.0001399,2]
[426463831,1782420631000,-9999.99,0.00013868,2]
[426463846,1782420631000,-150.0,0.00014,2]
[426463848,1782420631000,-150.0,0.00014,2]
[426463859,1782420631000,-151.0,0.00014,2]
[426463839,1782420631000,-152.0,0.00014,2]
[426463863,1782420631000,-887.0,0.00014,2]
[426463867,1782420631000,-150.0,0.00014,2]
[426463854,1782420631000,-151.0,0.00014,2]
[426463857,1782420631000,-150.0,0.00014,2]
[426463852,1782420631000,-150.0,0.00014,2]
[426463844,1782420631000,-150.0,0.00014,2]
[426463850,1782420631000,-151.0,0.00014,2]
[426463861,1782420631000,-151.0,0.00014,2]
[426463933,1782420632000,-500.0,0.00014967,2]
[426463937,1782420632000,-151.0,0.00014968,2]
[426463934,1782420632000,-270.52,0.00014967,2]
[426463942,1782420632000,-405.39,0.00015495,2]
[426463941,1782420632000,-223.17450606,0.00015267,7]
[426463943,1782420632000,-206.81044189,0.00015572,2]
[426463936,1782420632000,-150.0,0.00014968,2]
[426463939,1782420632000,-285.05513885,0.00014981,2]
[426463940,1782420632000,-160.0,0.00014982,2]
[426463947,1782420632000,-350.83,0.00016,14]
[426463946,1782420632000,-300.0,0.00016,2]
[426463938,1782420632000,-153.0,0.00014968,2]
[426463952,1782420632000,-363.47110564,0.0001708,2]
[426463945,1782420632000,-764.62361235,0.00015744,2]
[426463949,1782420632000,-3962.34597599,0.00016427,2]
[426463959,1782420632000,-3962.34597599,0.00017986,2]
[426463948,1782420632000,-2744.17659598,0.00016427,2]
[426463950,1782420632000,-150.0,0.00017043,2]
[426463954,1782420632000,-593.68,0.00017508,2]
[426463956,1782420632000,-150.0,0.00017551,2]
[426463958,1782420632000,-2744.17659598,0.00017986,2]
[426463955,1782420632000,-152.0,0.00017551,2]
[426463953,1782420632000,-155.0310796,0.00017401,2]
[426463935,1782420632000,-151.0,0.00014968,2]
[426463957,1782420632000,-230.25560157,0.00017915,2]
[426463944,1782420632000,-166.66,0.00015698,2]
[426463932,1782420632000,-500.0,0.00014967,2]
[426463915,1782420632000,-294.41368461,0.00014967,2]
[426463929,1782420632000,-500.0,0.00014967,2]
[426463960,1782420632000,-350.0,0.00018,2]
[426463900,1782420632000,-1125.65,0.000148,2]
[426463902,1782420632000,-152.0,0.00014822,2]
[426463906,1782420632000,-152.0,0.00014822,2]
[426463904,1782420632000,-152.0,0.00014822,2]
[426463911,1782420632000,-230.2556016,0.00014868,2]
[426463907,1782420632000,-1100.61527437,0.00014867,2]
[426463910,1782420632000,-7524.999,0.00014868,2]
[426463908,1782420632000,-152.0,0.00014867,2]
[426463909,1782420632000,-152.0,0.00014867,2]
[426463912,1782420632000,-2744.17659599,0.00014868,2]
[426463918,1782420632000,-500.0,0.00014967,2]
[426463914,1782420632000,-500.0,0.00014967,2]
[426463919,1782420632000,-356.08957922,0.00014967,2]
[426463924,1782420632000,-639.31675944,0.00014967,2]
[426463913,1782420632000,-3962.34597599,0.00014868,2]
[426463917,1782420632000,-173.93554341,0.00014967,2]
[426463922,1782420632000,-501.51609597,0.00014967,2]
[426463921,1782420632000,-500.0,0.00014967,2]
[426463916,1782420632000,-428.97121061,0.00014967,2]
[426463920,1782420632000,-500.0,0.00014967,2]
[426463925,1782420632000,-219.80382451,0.00014967,2]
[426463923,1782420632000,-308.13782631,0.00014967,2]
[426463927,1782420632000,-500.0,0.00014967,2]
[426463926,1782420632000,-199.591625,0.00014967,2]
[426463930,1782420632000,-500.0,0.00014967,2]
[426463928,1782420632000,-500.0,0.00014967,2]
[426463931,1782420632000,-500.0,0.00014967,2]
[426463963,1782420632000,-150.0,0.000192,2]
[426463951,1782420632000,-500.0,0.00017068,2]
[426463961,1782420632000,-218.57864496,0.00018498,2]
[426463992,1782420632000,-594.0,0.0002,2]
[426463993,1782420632000,-263.0,0.0002,2]
[426463997,1782420632000,-304.23529356,0.000207,2]
[426463996,1782420632000,-1707.29055931,0.000207,2]
[426464002,1782420632000,-391.88,0.00020758,2]
[426463999,1782420632000,-268.63367165,0.00020731,2]
[426464004,1782420632000,-447.87,0.00020892,2]
[426463998,1782420632000,-509.67095034,0.000207,2]
[426464000,1782420632000,-35.15903401,0.00020758,2]
[426464001,1782420632000,-608.57968406,0.00020758,2]
[426464006,1782420632000,-2011.52585287,0.000209,2]
[426464015,1782420632000,-288.0,0.00021,2]
[426463995,1782420632000,-1073.57782202,0.000207,2]
[426464016,1782420632000,-1187.0,0.00021,2]
[426464008,1782420632000,-230.25560157,0.00020962,2]
[426464012,1782420632000,-251.0,0.00021,2]
[426464005,1782420632000,-1073.57782202,0.000209,2]
[426464007,1782420632000,-509.67095034,0.000209,2]
[426464009,1782420632000,-677.0,0.00021,2]
[426464011,1782420632000,-307.0,0.00021,2]
[426464010,1782420632000,-745.0,0.00021,2]
[426464014,1782420632000,-242.0,0.00021,2]
[426464013,1782420632000,-569.0,0.00021,2]
[426464018,1782420632000,-162.0,0.00021,2]
[426464020,1782420632000,-594.0,0.00021,2]
[426464019,1782420632000,-467.0,0.00021,2]
[426464017,1782420632000,-388.0,0.00021,2]
[426463986,1782420632000,-1.1539236,0.0002,2]
[426464003,1782420632000,-2979.43660662,0.00020758,2]
[426463987,1782420632000,-1185.8460764,0.0002,2]
[426463965,1782420632000,-2744.17659598,0.00019545,2]
[426463964,1782420632000,-150.0,0.000192,2]
[426463969,1782420632000,-124.00262098,0.00019895,2]
[426463971,1782420632000,-500.0,0.00019898,2]
[426463966,1782420632000,-3962.34597599,0.00019545,2]
[426463990,1782420632000,-4154.0,0.0002,2]
[426463967,1782420632000,-593.68,0.00019696,2]
[426463970,1782420632000,-875.99737902,0.00019895,2]
[426463972,1782420632000,-500.0,0.00019899,2]
[426463983,1782420632000,-278.55092,0.0002,2]
[426463973,1782420632000,-500.0,0.00019899,2]
[426463982,1782420632000,-569.0,0.0002,2]
[426463974,1782420632000,-500.0,0.00019899,2]
[426463968,1782420632000,-288.23216361,0.00019858,2]
[426463975,1782420632000,-500.0,0.00019899,2]
[426463976,1782420632000,-152.70228215,0.00019899,2]
[426463988,1782420632000,-388.0,0.0002,2]
[426463991,1782420632000,-467.0,0.0002,2]
[426463985,1782420632000,-288.0,0.0002,2]
[426463994,1782420632000,-189.86987819,0.000207,2]
[426463989,1782420632000,-162.0,0.0002,2]
[426463962,1782420632000,-264.30396165,0.00018532,2]
[426463979,1782420632000,-745.0,0.0002,2]
[426463980,1782420632000,-307.0,0.0002,2]
[426463981,1782420632000,-251.0,0.0002,2]
[426463978,1782420632000,-677.0,0.0002,2]
[426463977,1782420632000,-427.15291923,0.00019899,2]
[426463984,1782420632000,-242.0,0.0002,2]
[426464036,1782420633000,-151.0,0.00021141,2]
[426464034,1782420633000,-151.0,0.00021141,2]
[426464033,1782420633000,-151.0,0.00021141,2]
[426464032,1782420633000,-151.0,0.00021141,2]
[426464031,1782420633000,-151.0,0.00021141,2]
[426464041,1782420633000,-151.0,0.00021141,2]
[426464030,1782420633000,-151.0,0.00021141,2]
[426464028,1782420633000,-151.0,0.00021141,2]
[426464023,1782420633000,-2011.52585287,0.000211,2]
[426464029,1782420633000,-151.0,0.00021141,2]
[426464025,1782420633000,-2744.17659598,0.00021104,2]
[426464022,1782420633000,-1073.57782202,0.000211,2]
[426464021,1782420633000,-263.0,0.00021,2]
[426464024,1782420633000,-509.67095034,0.000211,2]
[426464026,1782420633000,-3962.34597599,0.00021104,2]
[426464027,1782420633000,-151.0,0.00021141,2]
[426464035,1782420633000,-151.0,0.00021141,2]
[426464038,1782420633000,-151.0,0.00021141,2]
[426464037,1782420633000,-151.0,0.00021141,2]
[426464051,1782420633000,-629.57876312,0.000213,2]
[426464052,1782420633000,-42.51123688,0.000213,2]
[426464049,1782420633000,-1073.57782202,0.000213,2]
[426464053,1782420633000,-300.0,0.000213,2]
[426464046,1782420633000,-151.0,0.00021141,2]
[426464048,1782420633000,-264.30396165,0.00021288,2]
[426464047,1782420633000,-291.85650189,0.0002128,2]
[426464050,1782420633000,-1381.94708975,0.000213,2]
[426464045,1782420633000,-151.0,0.00021141,2]
[426464044,1782420633000,-151.0,0.00021141,2]
[426464042,1782420633000,-151.0,0.00021141,2]
[426464040,1782420633000,-151.0,0.00021141,2]
[426464039,1782420633000,-151.0,0.00021141,2]
[426464043,1782420633000,-151.0,0.00021141,2]
[426464063,1782420637000,-677.0,0.00022,2]
[426464062,1782420637000,-5000.0,0.00021918,2]
[426464061,1782420637000,-593.68,0.00021885,2]
[426464059,1782420637000,-405.39,0.00021693,2]
[426464055,1782420637000,-167.15971346,0.000213,2]
[426464057,1782420637000,-2011.52585287,0.000215,2]
[426464058,1782420637000,-509.67095034,0.000215,2]
[426464066,1782420637000,-307.0,0.00022,2]
[426464060,1782420637000,-2011.52585287,0.000218,2]
[426464068,1782420637000,-569.0,0.00022,2]
[426464056,1782420637000,-1073.57782202,0.000215,2]
[426464067,1782420637000,-251.0,0.00022,2]
[426464064,1782420637000,-745.0,0.00022,2]
[426464070,1782420637000,-288.0,0.00022,2]
[426464069,1782420637000,-242.0,0.00022,2]
[426464072,1782420637000,-133.12684967,0.00022,2]
[426464071,1782420637000,-1187.0,0.00022,2]
[426464075,1782420637000,-258.13065372,0.00022,2]
[426464073,1782420637000,-254.87315033,0.00022,2]
[426464076,1782420637000,-410.0,0.00022,2]
[426464074,1782420637000,-162.0,0.00022,2]
[426464077,1782420637000,-400.01419502,0.00022,2]
[426464065,1782420637000,-2011.52585287,0.00022,2]
[426464165,1782420639000,-478.58083604,0.00022,2]
[426464164,1782420639000,-151.0,0.00021387,2]
[426464168,1782420639000,-297.02950293,0.00022,2]
[426464167,1782420639000,-467.0,0.00022,2]
[426464170,1782420639000,-263.0,0.00022,2]
[426464169,1782420639000,-296.97049707,0.00022,2]
[426464172,1782420639000,-473.00342914,0.000222,2]
[426464171,1782420639000,-126.15450293,0.000222,2]
[426464166,1782420639000,-923.47431522,0.00022,2]
[426464182,1782420642000,-91.30424647,0.00022055,2]
[426464192,1782420646000,-479.36862301,0.0002174,2]
[426464191,1782420646000,-649.14504486,0.0002174,2]
[426464190,1782420646000,-518.86995513,0.00021262,2]
[426464199,1782420646000,-3373.69770268,0.00022262,2]